bitfinex-derivatives/quotes_BTCF0:USTF0_20250704
["timestamp","ask_amount","ask_price","bid_price","bid_amount"]
[1751619954250,1.02866669,108920.0,108910.0,0.78447999]
[1751619954450,1.27866669,108920.0,108910.0,0.74789882]
[1751619954652,1.03866669,108920.0,108910.0,0.78447999]
[1751619954950,1.34866669,108920.0,108910.0,0.78447999]
[1751619956355,0.71810315,108920.0,108910.0,0.78447999]
[1751619956559,1.02866669,108920.0,108910.0,0.78447999]
[1751619957055,1.02866669,108920.0,108910.0,0.84837999]
[1751619957252,1.28866669,108920.0,108910.0,0.84837999]
[1751619957453,1.02866669,108920.0,108910.0,0.84837999]
[1751619957654,1.02866669,108920.0,108910.0,0.84837989]
[1751619957960,1.59923023,108920.0,108910.0,0.53391625]
[1751619958661,1.59923023,108920.0,108910.0,0.78447979]
[1751619959961,1.59923023,108920.0,108910.0,0.53391625]
[1751619960453,2.43411023,108920.0,108910.0,0.01376128]
[1751619960761,2.61774223,108920.0,108910.0,0.01376128]
[1751619961461,2.61774223,108920.0,108910.0,0.10376128]
[1751619962558,0.1835906,108900.0,108890.0,0.3836015]
[1751619962864,2.25039768,108900.0,108890.0,0.5668402]
[1751619963064,1.8446706,108900.0,108890.0,0.81740374]
[1751619963364,2.09523414,108900.0,108890.0,0.78984324]
[1751619963556,2.09523414,108900.0,108890.0,0.78082257]
[1751619963754,2.09523414,108900.0,108890.0,0.87532807]
[1751619963958,1.72523414,108900.0,108890.0,0.58532807]
[1751619964163,1.72523414,108900.0,108890.0,0.64952807]
[1751619964566,1.72523414,108900.0,108890.0,0.65452807]
[1751619964864,1.69393414,108900.0,108890.0,0.65452807]
[1751619965260,1.66153414,108900.0,108890.0,0.65452807]
[1751619966166,2.04183414,108900.0,108890.0,0.65452807]
[1751619966366,2.07353414,108900.0,108890.0,0.59960374]
[1751619966556,2.07353414,108900.0,108890.0,0.65452807]
[1751619967072,1.8229706,108900.0,108890.0,0.37010807]
[1751619967367,2.07353414,108900.0,108890.0,0.37010807]
[1751619967767,2.07353414,108900.0,108890.0,0.55371557]
[1751619968163,2.07357414,108900.0,108890.0,0.55371557]
[1751619968371,1.23865414,108900.0,108890.0,0.55371557]
[1751619968566,1.8230506,108900.0,108890.0,0.55371557]
[1751619968771,2.07361414,108900.0,108890.0,0.55371557]
[1751619970164,2.07361414,108900.0,108890.0,0.5171344]
[1751619970364,1.72361414,108900.0,108890.0,0.5171344]
[1751619970764,2.04361414,108900.0,108890.0,0.5171344]
[1751619970960,2.04361414,108900.0,108890.0,0.26657086]
[1751619971165,2.04361414,108900.0,108890.0,0.5171344]
[1751619971972,1.98161414,108900.0,108890.0,0.5171344]
[1751619972269,1.98161414,108900.0,108890.0,0.51713473]
[1751619972664,1.66161414,108900.0,108890.0,0.5537159]
[1751619973274,1.66161414,108900.0,108890.0,0.5507159]
[1751619973471,1.66161414,108900.0,108890.0,0.5527159]
[1751619973766,1.66161414,108900.0,108890.0,0.5507159]
[1751619974270,0.2152906,108900.0,108890.0,0.5507159]
[1751619974474,0.1835906,108900.0,108890.0,1.11127944]
[1751619974676,0.6361791,108910.0,108900.0,0.1835906]
[1751619974873,1.4711391,108910.0,108900.0,1.12828137]
[1751619975267,1.4711391,108910.0,108900.0,1.16486254]
[1751619975878,1.4711391,108910.0,108900.0,0.82486254]
[1751619977580,1.4711391,108910.0,108900.0,0.82586254]
[1751619977779,1.4711391,108910.0,108900.0,0.57514542]
[1751619978469,1.4711391,108910.0,108900.0,0.57714542]
[1751619978875,1.4711391,108910.0,108900.0,0.89714542]
[1751619979080,1.4711391,108910.0,108900.0,0.89914542]
[1751619979574,2.07154906,108910.0,108900.0,0.29683546]
[1751619979776,2.10404906,108910.0,108900.0,0.29683546]
[1751619980190,1.8536391,108910.0,108900.0,0.29683546]
[1751619980582,1.5036391,108910.0,108900.0,0.29683546]
[1751619981291,1.5036391,108910.0,108900.0,0.29683452]
[1751619981292,1.8536391,108910.0,108900.0,0.29683452]
[1751619981678,1.8859391,108910.0,108900.0,0.29683452]
[1751619982584,2.13634906,108910.0,108900.0,0.29683452]
[1751619984486,1.8859391,108910.0,108900.0,0.29683452]
[1751619984685,2.13634906,108910.0,108900.0,0.29683452]
[1751619984885,1.80634906,108910.0,108900.0,0.29683452]
[1751619985085,1.5236391,108910.0,108900.0,0.29683452]
[1751619985674,1.5236391,108910.0,108900.0,0.54724448]
[1751619986989,1.5236391,108910.0,108900.0,0.29683452]
[1751619988085,1.8636391,108910.0,108900.0,0.29683452]
[1751619988286,1.5236391,108910.0,108900.0,0.29683452]
[1751619988586,1.8836391,108910.0,108900.0,0.29683452]
[1751619988786,1.5236391,108910.0,108900.0,0.54724448]
[1751619989288,1.8336391,108910.0,108900.0,0.29683452]
[1751619992584,1.8663391,108910.0,108900.0,0.29683452]
[1751619993686,1.8663391,108910.0,108900.0,0.26025335]
[1751619994589,1.0313791,108910.0,108900.0,0.26025335]
[1751619994784,1.8662591,108910.0,108900.0,0.26025335]
[1751619995290,1.8662591,108910.0,108900.0,0.29683452]
[1751619996885,1.8973591,108910.0,108900.0,0.29683452]
[1751619997880,2.14776906,108910.0,108900.0,0.29683452]
[1751619999588,1.8973591,108910.0,108900.0,0.29683452]
[1751619999791,2.14781242,108910.0,108900.0,0.54728784]
[1751620000993,2.14781242,108910.0,108900.0,0.29683452]
[1751620001185,2.14781242,108910.0,108900.0,0.54728784]
[1751620001892,2.14781242,108910.0,108900.0,0.51688784]
[1751620003590,2.14781242,108910.0,108900.0,0.57181217]
[1751620004395,2.14781242,108910.0,108900.0,0.535231]
[1751620004694,2.50861242,108910.0,108900.0,0.535231]
[1751620005996,2.50861242,108910.0,108900.0,0.5352311]
[1751620008799,2.50861242,108910.0,108900.0,0.5667311]
[1751620010389,2.50861242,108910.0,108900.0,0.3516405]
[1751620010594,2.50861242,108910.0,108900.0,0.535231]
[1751620012202,2.50861242,108910.0,108900.0,0.53523113]
[1751620012606,2.50861242,108910.0,108900.0,0.10118731]
[1751620012799,2.50861242,108910.0,108900.0,0.35164063]
[1751620013000,2.50861242,108910.0,108900.0,0.53523113]
[1751620013700,2.50861242,108910.0,108900.0,0.35164063]
[1751620013900,2.50861242,108910.0,108900.0,0.38832907]
[1751620014203,2.2581591,108910.0,108900.0,0.38832907]
[1751620014406,2.50861242,108910.0,108900.0,0.57191957]
[1751620016008,2.50861242,108910.0,108900.0,0.60241957]
[1751620016208,2.50861242,108910.0,108900.0,0.60241958]
[1751620018406,2.50861242,108910.0,108900.0,0.35196626]
[1751620018608,2.50861242,108910.0,108900.0,0.60241958]
[1751620022114,1.4232791,108910.0,108900.0,0.60241958]
[1751620022411,2.44477242,108910.0,108900.0,0.60241958]
[1751620022609,2.44477242,108910.0,108900.0,0.60239279]
[1751620022809,2.44477242,108910.0,108900.0,0.56573114]
[1751620023110,2.08397242,108910.0,108900.0,0.56573114]
[1751620026816,2.13397242,108910.0,108900.0,0.56573114]
[1751620027213,2.13397242,108910.0,108900.0,0.55496815]
[1751620029210,1.8835191,108910.0,108900.0,0.55496815]
[1751620029510,2.13397242,108910.0,108900.0,0.55496815]
[1751620033028,2.13397242,108910.0,108900.0,0.59163173]
[1751620033227,1.8835191,108910.0,108900.0,0.59163173]
[1751620033428,2.13397242,108910.0,108900.0,0.59163173]
[1751620036536,1.77317242,108910.0,108900.0,0.59163173]
[1751620036736,2.13397242,108910.0,108900.0,0.59163173]
[1751620038033,2.13397242,108910.0,108900.0,0.55496815]
[1751620038428,1.8835191,108910.0,108900.0,0.55496815]
[1751620038633,2.13397242,108910.0,108900.0,0.55496815]
[1751620039337,2.13397242,108910.0,108900.0,0.536708]
[1751620041838,2.13397242,108910.0,108900.0,0.3531175]
[1751620042238,2.13397242,108910.0,108900.0,0.10266418]
[1751620042439,2.13397242,108910.0,108900.0,0.3531175]
[1751620042737,2.16457242,108910.0,108900.0,0.07216418]
[1751620042937,2.44692574,108910.0,108900.0,0.04166418]
[1751620043134,2.44692574,108910.0,108890.0,0.11812433]
[1751620043438,0.1836073,108890.0,108880.0,0.43407592]
[1751620043637,1.62958062,108890.0,108880.0,0.46447592]
[1751620043939,1.71630765,108890.0,108880.0,0.46447592]
[1751620044140,2.02630765,108890.0,108880.0,0.46447592]
[1751620044642,2.02630765,108890.0,108880.0,0.47147592]
[1751620044940,1.71630765,108890.0,108880.0,0.47147592]
[1751620046235,1.71630765,108890.0,108880.0,0.47547592]
[1751620046439,1.71630765,108890.0,108880.0,0.50687592]
[1751620046639,2.02630765,108890.0,108880.0,0.50687592]
[1751620047543,1.71630765,108890.0,108880.0,0.50687592]
[1751620048741,2.03630765,108890.0,108880.0,0.50687592]
[1751620050245,1.67550765,108890.0,108880.0,0.50687592]
[1751620050431,2.03630765,108890.0,108880.0,0.50687592]
[1751620057241,2.03630765,108890.0,108880.0,0.0414]
[1751620057547,2.06750765,108890.0,108880.0,0.47547752]
[1751620058450,2.03630765,108890.0,108880.0,0.47547752]
[1751620062447,0.84078765,108890.0,108880.0,0.47547752]
[1751620062646,1.20158765,108890.0,108880.0,0.72593084]
[1751620062843,2.03634765,108890.0,108880.0,0.78913084]
[1751620063447,0.56663443,108890.0,108880.0,1.10913084]
[1751620063640,1.1101637,108900.0,108890.0,0.1836074]
[1751620063845,0.2754037,108900.0,108890.0,1.13484815]
[1751620064449,0.2295024,108900.0,108890.0,1.13484815]
[1751620064854,0.2295024,108900.0,108890.0,1.13684815]
[1751620067056,0.2295024,108900.0,108890.0,1.14084815]
[1751620067255,0.2295024,108900.0,108890.0,0.94039483]
[1751620068458,0.2295024,108900.0,108890.0,0.56039483]
[1751620068656,0.2295024,108900.0,108890.0,0.91039483]
[1751620069458,0.2295024,108900.0,108890.0,0.94339483]
[1751620071961,0.2295024,108900.0,108890.0,0.59339483]
[1751620072262,0.2295024,108900.0,108890.0,0.95339483]
[1751620074463,0.1835905,108900.0,108890.0,1.34154525]
[1751620075357,0.1835905,108900.0,108890.0,1.09109193]
[1751620076762,0.1835905,108900.0,108890.0,0.73109193]
[1751620076958,0.1835905,108900.0,108890.0,1.09109193]
[1751620077159,0.1835905,108900.0,108890.0,1.05109193]
[1751620078461,0.81074162,108910.0,108890.0,1.05109193]
[1751620078662,0.89639428,108910.0,108900.0,0.46554382]
[1751620078865,1.1468476,108910.0,108900.0,0.76556411]
[1751620080067,1.1468476,108910.0,108900.0,0.76756411]
[1751620081061,0.83459428,108910.0,108900.0,0.76756411]
[1751620081271,0.78869718,108910.0,108900.0,0.76856411]
[1751620081461,0.78869718,108910.0,108900.0,1.12006411]
[1751620082368,0.78869718,108910.0,108900.0,0.80006411]
[1751620082769,0.7661787,108910.0,108900.0,0.80006411]
[1751620083770,0.4908,108910.0,108900.0,0.80006411]
[1751620084072,0.5443741,108910.0,108900.0,1.23499822]
[1751620084471,0.3608,108910.0,108900.0,1.23499822]
[1751620084973,0.5443741,108910.0,108900.0,1.23499822]
[1751620091481,0.5443741,108910.0,108900.0,0.94499822]
[1751620091682,0.5443741,108910.0,108900.0,1.21499822]
[1751620091882,0.5763741,108910.0,108900.0,1.21499822]
[1751620093084,0.5763741,108910.0,108900.0,1.18349822]
[1751620093286,0.6067741,108910.0,108900.0,1.18349822]
[1751620093785,0.62926006,108910.0,108900.0,1.18349822]
[1751620096493,0.87971338,108910.0,108900.0,0.91349822]
[1751620096994,0.62926006,108910.0,108900.0,0.91349822]
[1751620099495,0.62926006,108910.0,108900.0,0.85856411]
[1751620100590,0.87971338,108910.0,108900.0,0.82786411]
[1751620103697,0.85722742,108910.0,108900.0,0.88279822]
[1751620105899,0.49642742,108910.0,108900.0,0.88279822]
[1751620106500,2.01154742,108910.0,108900.0,0.26039158]
[1751620106696,1.72224742,108910.0,108900.0,0.26039158]
[1751620106897,2.09474042,108910.0,108900.0,0.5108449]
[1751620107694,1.74474042,108910.0,108900.0,0.5108449]
[1751620108495,2.10474042,108910.0,108900.0,0.5108449]
[1751620108700,1.74474042,108910.0,108900.0,0.45591079]
[1751620109000,2.07474042,108910.0,108900.0,0.45591079]
[1751620109199,1.74474042,108910.0,108900.0,0.45591079]
[1751620109902,2.09474042,108910.0,108900.0,0.45591079]
[1751620110102,1.74474042,108910.0,108900.0,0.45591079]
[1751620111596,1.74474042,108910.0,108900.0,0.70636411]
[1751620111790,1.74474042,108910.0,108900.0,0.45591079]
[1751620112299,2.06474042,108910.0,108900.0,0.5108449]
[1751620112500,1.74474042,108910.0,108900.0,0.5108449]
[1751620113102,2.09474042,108910.0,108900.0,0.5108449]
[1751620113399,1.74474042,108910.0,108900.0,0.5108449]
[1751620114205,2.12474042,108910.0,108900.0,0.5108449]
[1751620114602,1.74474042,108910.0,108900.0,0.5108449]
[1751620114802,2.08474042,108910.0,108900.0,0.5108449]
[1751620115003,1.74474042,108910.0,108900.0,0.5108449]
[1751620115606,2.06474042,108910.0,108900.0,0.5108449]
[1751620116098,1.74474042,108910.0,108900.0,0.5108449]
[1751620116300,2.09474042,108910.0,108900.0,0.5108449]
[1751620116806,1.74474042,108910.0,108900.0,0.5108449]
[1751620117194,2.05474042,108910.0,108900.0,0.5108449]
[1751620117398,1.74474042,108910.0,108900.0,0.5108449]
[1751620117701,2.08474042,108910.0,108900.0,0.5108449]
[1751620117896,1.74474042,108910.0,108900.0,0.5108449]
[1751620118302,2.07474042,108910.0,108900.0,0.5108449]
[1751620119006,1.74474042,108910.0,108900.0,0.5108449]
[1751620119206,2.07474042,108910.0,108900.0,0.5108449]
[1751620120408,1.74474042,108910.0,108900.0,0.5108449]
[1751620121209,1.38394042,108910.0,108900.0,0.5108449]
[1751620121409,1.74474042,108910.0,108900.0,0.5108449]
[1751620122211,2.10474042,108910.0,108900.0,0.5108449]
[1751620122409,1.38394042,108910.0,108900.0,0.5108449]
[1751620122611,1.74474042,108910.0,108900.0,0.45591079]
[1751620123303,1.74474042,108910.0,108900.0,0.48831079]
[1751620126011,1.74462042,108910.0,108900.0,0.48831079]
[1751620126511,1.72212742,108910.0,108900.0,0.56157862]
[1751620127312,2.12467359,108910.0,108900.0,0.48831079]
[1751620127713,1.74467359,108910.0,108900.0,0.48831079]
[1751620128008,2.12467359,108910.0,108900.0,0.48831079]
[1751620128308,1.86422027,108910.0,108900.0,0.48831079]
[1751620128508,0.91047359,108910.0,108900.0,0.05426697]
[1751620128714,2.05467359,108910.0,108900.0,0.26048605]
[1751620129415,2.05467359,108910.0,108900.0,0.51093937]
[1751620131214,2.05467359,108910.0,108900.0,0.26048605]
[1751620131617,2.05467359,108910.0,108900.0,0.51093937]
[1751620132612,2.05467359,108910.0,108900.0,0.26048605]
[1751620133819,2.05467359,108910.0,108900.0,0.20545777]
[1751620135616,2.05467359,108910.0,108900.0,0.02186697]
[1751620135814,2.41547359,108910.0,108900.0,0.02186697]
[1751620137820,1.55057359,108910.0,108900.0,0.45591109]
[1751620138020,0.93932027,108910.0,108900.0,0.73896441]
[1751620138221,0.56692017,108910.0,108900.0,1.07896441]
[1751620138427,1.40104017,108910.0,108900.0,1.19699269]
[1751620139627,0.56692017,108910.0,108900.0,1.19699269]
[1751620139828,1.40108017,108910.0,108900.0,1.19699269]
[1751620142328,1.40108017,108910.0,108900.0,0.85699269]
[1751620142528,1.40108017,108910.0,108900.0,1.21699269]
[1751620142823,1.40108017,108910.0,108900.0,0.71608605]
[1751620143028,1.40108017,108910.0,108900.0,1.22699269]
[1751620143730,1.378534,108910.0,108900.0,1.22699269]
[1751620144828,1.378534,108910.0,108900.0,0.85699269]
[1751620145130,1.378534,108910.0,108900.0,1.18699269]
[1751620145530,1.017734,108910.0,108900.0,1.18699269]
[1751620147229,1.04025378,108910.0,108900.0,1.18699269]
[1751620147426,1.04025378,108910.0,108900.0,0.35608605]
[1751620147626,1.04025378,108910.0,108900.0,1.23699269]
[1751620148324,1.04025378,108910.0,108900.0,0.85699269]
[1751620150533,1.2907071,108910.0,108900.0,0.85699269]
[1751620152431,1.2905871,108910.0,108900.0,0.85699269]
[1751620152632,1.04013378,108910.0,108900.0,0.85699269]
[1751620158830,1.04009378,108910.0,108900.0,0.85699269]
[1751620159038,1.04009378,108910.0,108900.0,1.20699269]
[1751620160630,1.017574,108910.0,108900.0,1.20699269]
[1751620161832,1.017574,108910.0,108900.0,0.85699269]
[1751620162138,1.017574,108910.0,108900.0,1.22699269]
[1751620163836,1.04005132,108910.0,108900.0,1.22699269]
[1751620167448,1.03997132,108910.0,108900.0,1.22699269]
[1751620167849,0.83392,108910.0,108900.0,1.22699269]
[1751620168343,1.017494,108910.0,108900.0,1.24523224]
[1751620168548,1.89472877,108920.0,108910.0,0.183574]
[1751620168740,2.10722311,108920.0,108910.0,0.4890496]
[1751620168940,1.85676979,108920.0,108910.0,0.4890496]
[1751620169146,1.02288979,108920.0,108910.0,0.5222496]
[1751620169347,1.85676979,108920.0,108910.0,0.5222496]
[1751620169548,1.85776979,108920.0,108910.0,0.5222496]
[1751620169746,2.10822311,108920.0,108910.0,0.5222496]
[1751620169937,2.10822311,108920.0,108910.0,0.53152465]
[1751620170647,1.85776979,108920.0,108910.0,0.53152465]
[1751620172647,0.71694059,108920.0,108910.0,0.91152465]
[1751620172950,1.31814355,108920.0,108910.0,1.16197797]
[1751620173151,1.31814355,108920.0,108910.0,0.94302465]
[1751620173754,1.31814355,108920.0,108910.0,0.56302465]
[1751620173943,1.31814355,108920.0,108910.0,0.88302465]
[1751620174140,0.48430355,108920.0,108910.0,0.88302465]
[1751620174553,0.48430355,108920.0,108910.0,0.88502465]
[1751620174947,0.48430355,108920.0,108910.0,1.13547797]
[1751620175152,0.48430355,108920.0,108910.0,0.88502465]
[1751620175450,0.48330355,108920.0,108910.0,0.91762465]
[1751620178551,0.48330355,108920.0,108910.0,0.56502465]
[1751620178857,0.51370355,108920.0,108910.0,0.56502465]
[1751620182350,0.51370355,108920.0,108910.0,0.93502465]
[1751620183754,0.53618657,108920.0,108910.0,0.88000237]
[1751620190060,0.53618657,108920.0,108910.0,0.51000237]
[1751620192265,0.53618657,108920.0,108910.0,0.56502465]
[1751620192649,0.53618657,108920.0,108910.0,0.31457133]
[1751620192851,0.53618657,108920.0,108910.0,0.47850237]
[1751620193050,0.56678657,108920.0,108910.0,0.47850237]
[1751620193458,0.81723989,108920.0,108910.0,0.47850237]
[1751620193660,1.17803989,108920.0,108910.0,0.43602732]
[1751620193865,1.17804761,108920.0,108910.0,0.4910496]
[1751620194257,1.42850093,108920.0,108910.0,0.4910496]
[1751620194657,1.17804761,108920.0,108910.0,0.4910496]
[1751620195168,0.92759429,108920.0,108910.0,0.50021124]
[1751620196066,1.17804761,108920.0,108910.0,0.50021124]
[1751620196671,0.92759429,108920.0,108910.0,0.50021124]
[1751620198264,0.92759429,108920.0,108910.0,0.53221124]
[1751620198265,0.89699429,108920.0,108910.0,0.53221124]
[1751620202472,0.53619429,108920.0,108910.0,0.53221124]
[1751620202674,0.89699429,108920.0,108910.0,0.53221124]
[1751620207776,0.87450355,108920.0,108910.0,0.53221124]
[1751620208076,0.8970056,108920.0,108910.0,0.53221124]
[1751620208577,1.14745892,108920.0,108910.0,0.53221124]
[1751620209379,1.14745892,108920.0,108910.0,0.5230496]
[1751620209567,1.17885892,108920.0,108910.0,0.4910496]
[1751620210978,1.17985892,108920.0,108910.0,0.4910496]
[1751620211180,1.17985892,108920.0,108910.0,0.4890496]
[1751620211377,0.81905892,108920.0,108910.0,0.4890496]
[1751620211578,1.17985892,108920.0,108910.0,0.4890496]
[1751620214284,1.17985892,108920.0,108910.0,0.23859628]
[1751620214578,1.17985892,108920.0,108910.0,0.4890496]
[1751620220889,1.43031224,108920.0,108910.0,0.05502228]
[1751620221097,0.1835739,108910.0,108900.0,0.27936621]
[1751620221286,2.11892927,108910.0,108900.0,0.46295691]
[1751620221487,1.86847595,108910.0,108900.0,0.46295691]
[1751620221690,1.46587595,108910.0,108900.0,0.74431023]
[1751620221889,1.46587595,108910.0,108900.0,0.77531023]
[1751620222992,1.46587595,108910.0,108900.0,0.77731023]
[1751620228395,1.71632927,108910.0,108900.0,0.77731023]
[1751620229300,1.46587595,108910.0,108900.0,0.77731023]
[1751620233402,1.46587595,108910.0,108900.0,0.77531023]
[1751620234001,1.46687595,108910.0,108900.0,0.77531023]
[1751620234502,1.10607595,108910.0,108900.0,0.77531023]
[1751620234690,1.46687595,108910.0,108900.0,0.77531023]
[1751620235702,0.63347595,108910.0,108900.0,0.77531023]
[1751620236099,0.63369655,108910.0,108900.0,0.77531023]
[1751620236403,0.63369655,108910.0,108900.0,0.74431023]
[1751620240806,0.63369655,108910.0,108900.0,0.77651023]
[1751620253605,0.88414987,108910.0,108900.0,0.77651023]
[1751620254517,0.63369655,108910.0,108900.0,0.77651023]
[1751620255116,0.63369655,108910.0,108900.0,0.27560359]
[1751620255314,0.63369655,108910.0,108900.0,0.77651023]
[1751620261512,0.63369655,108910.0,108900.0,0.52605691]
[1751620262416,0.27289655,108910.0,108900.0,0.52605691]
[1751620262618,0.63369655,108910.0,108900.0,0.52605691]
[1751620263010,0.88414987,108910.0,108900.0,0.52605691]
[1751620263820,0.52334987,108910.0,108900.0,0.52605691]
[1751620264114,0.88414987,108910.0,108900.0,0.52605691]
[1751620267418,0.88424584,108910.0,108900.0,0.52605691]
[1751620269920,0.88424588,108910.0,108900.0,0.52605691]
[1751620270120,0.88424588,108910.0,108900.0,0.77651023]
[1751620270918,0.63379256,108910.0,108900.0,0.77651023]
[1751620271118,0.88424588,108910.0,108900.0,0.77651023]
[1751620272423,0.52344588,108910.0,108900.0,0.77651023]
[1751620272621,0.88424588,108910.0,108900.0,0.77651023]
[1751620273319,0.88424588,108910.0,108900.0,0.32297857]
[1751620273524,1.25424588,108910.0,108900.0,0.00942525]
[1751620273729,0.1835908,108900.0,108890.0,0.0322]
[1751620273916,2.3429961,108900.0,108890.0,0.0322]
[1751620274113,0.1836077,108890.0,108880.0,0.65067654]
[1751620274319,0.81767968,108890.0,108880.0,0.90112986]
[1751620274825,0.81767968,108890.0,108880.0,0.65067654]
[1751620275231,0.85097968,108890.0,108880.0,0.65067654]
[1751620276014,0.85097968,108890.0,108880.0,0.61847654]
[1751620276217,0.88417968,108890.0,108880.0,0.61847654]
[1751620277121,0.88417968,108890.0,108880.0,0.62247654]
[1751620277430,0.88417968,108890.0,108880.0,0.60336794]
[1751620278132,0.63372636,108890.0,108880.0,0.60336794]
[1751620278333,0.56722636,108890.0,108880.0,0.63356794]
[1751620278634,0.56722636,108890.0,108880.0,0.88402126]
[1751620279228,0.56722636,108890.0,108880.0,0.88602126]
[1751620283518,0.56722636,108890.0,108880.0,1.24602126]
[1751620283722,0.20642636,108890.0,108880.0,1.49647458]
[1751620283924,0.20640403,108890.0,108880.0,1.24602126]
[1751620284332,0.1836077,108890.0,108880.0,1.24602126]
[1751620291137,0.1836077,108890.0,108880.0,0.88602126]
[1751620295846,0.20641078,108890.0,108880.0,0.88602126]
[1751620297846,0.20641078,108890.0,108880.0,0.38511462]
[1751620298049,0.20641078,108890.0,108880.0,0.88602126]
[1751620305454,0.20641078,108890.0,108880.0,1.23602126]
[1751620308253,0.20641078,108890.0,108880.0,1.22602126]
[1751620308560,0.20641078,108890.0,108880.0,0.88602126]
[1751620308760,0.20641078,108890.0,108880.0,1.20602126]
[1751620309261,0.1836077,108890.0,108880.0,1.27928909]
[1751620309463,0.1836077,108890.0,108880.0,1.29835913]
[1751620309956,0.1836077,108890.0,108880.0,1.2250913]
[1751620310162,0.1836077,108890.0,108880.0,1.29835913]
[1751620310464,0.2066086,108890.0,108880.0,1.29835913]
[1751620310763,0.2066086,108890.0,108880.0,1.2250913]
[1751620311256,0.2066086,108890.0,108880.0,1.29835913]
[1751620311456,0.1836077,108890.0,108880.0,1.29835913]
[1751620312264,0.20661234,108890.0,108880.0,1.29835913]
[1751620312963,0.20661234,108890.0,108880.0,1.2250913]
[1751620313360,0.81786566,108890.0,108880.0,0.8107913]
[1751620313659,0.66321234,108890.0,108880.0,0.8107913]
[1751620313859,0.66321234,108890.0,108880.0,0.8438913]
[1751620314160,0.63161234,108890.0,108880.0,0.8438913]
[1751620318659,1.20206566,108890.0,108880.0,0.1896245]
[1751620318864,1.23516566,108890.0,108880.0,0.1896245]
[1751620319766,1.23516566,108890.0,108880.0,0.006]
[1751620320166,1.23516566,108890.0,108880.0,0.1896245]
[1751620321761,0.91516566,108890.0,108880.0,0.1896245]
[1751620321968,1.74804566,108890.0,108880.0,0.44007782]
[1751620322267,0.52126566,108890.0,108880.0,0.69053114]
[1751620322462,1.10369234,108890.0,108880.0,0.75493114]
[1751620322770,0.20661234,108890.0,108880.0,0.75493114]
[1751620322963,0.20661234,108890.0,108880.0,0.78773114]
[1751620333476,0.20661234,108890.0,108880.0,1.10773114]
[1751620334171,0.3608,108900.0,108890.0,0.1836077]
[1751620334373,0.5443908,108900.0,108890.0,1.16141434]
[1751620335275,0.5443908,108900.0,108890.0,1.16341434]
[1751620335472,0.4681936,108910.0,108900.0,0.1835912]
[1751620335679,1.0979206,108910.0,108900.0,1.08559784]
[1751620335875,0.91434,108910.0,108900.0,1.11829784]
[1751620336071,0.02,108910.0,108900.0,1.11829784]
[1751620336272,0.02,108910.0,108900.0,1.15059784]
[1751620336873,0.021,108910.0,108900.0,1.15059784]
[1751620339480,0.001,108910.0,108900.0,1.15059784]
[1751620340782,1.07085037,108920.0,108910.0,0.1835743]
[1751620340975,1.04495687,108920.0,108910.0,0.46672762]
[1751620342087,1.04495687,108920.0,108910.0,0.47594637]
[1751620343385,1.04595687,108920.0,108910.0,0.47594637]
[1751620346290,1.06878615,108920.0,108910.0,0.47594637]
[1751620346782,0.45884625,108920.0,108910.0,0.47594637]
[1751620346988,0.26160375,108920.0,108910.0,0.87914637]
[1751620347489,0.07804625,108920.0,108910.0,1.23994637]
[1751620347987,0.26160375,108920.0,108910.0,1.24994637]
[1751620352390,0.51205707,108920.0,108910.0,0.89994637]
[1751620352689,0.57435707,108920.0,108910.0,0.86934637]
[1751620353489,0.93515707,108920.0,108910.0,0.50854637]
[1751620358180,0.93515707,108920.0,108910.0,0.44324637]
[1751620358383,0.96705707,108920.0,108910.0,0.44324637]
[1751620358991,1.31705707,108920.0,108910.0,0.43402762]
[1751620359490,1.59751039,108920.0,108910.0,0.1835743]
[1751620359691,0.1835743,108910.0,108900.0,0.64446329]
[1751620359892,0.49872762,108910.0,108900.0,0.98491661]
[1751620360393,0.85952762,108910.0,108900.0,0.62516709]
[1751620360587,0.89142762,108910.0,108900.0,0.62516709]
[1751620361394,0.89142762,108910.0,108900.0,0.65736709]
[1751620361699,0.89142762,108910.0,108900.0,0.65936709]
[1751620362692,1.27142762,108910.0,108900.0,0.65001892]
[1751620362885,0.89142762,108910.0,108900.0,0.65001892]
[1751620363992,0.89142762,108910.0,108900.0,0.90047224]
[1751620364886,1.69204762,108910.0,108900.0,0.90047224]
[1751620365193,1.69204762,108910.0,108900.0,0.68321892]
[1751620365794,1.4415943,108910.0,108900.0,0.68321892]
[1751620366092,1.69204762,108910.0,108900.0,0.68321892]
[1751620366494,1.69204762,108910.0,108900.0,0.65001892]
[1751620367393,1.69204762,108910.0,108900.0,0.3995656]
[1751620367593,1.69204762,108910.0,108900.0,0.65001892]
[1751620372495,1.33124762,108910.0,108900.0,0.65001892]
[1751620372695,1.69204762,108910.0,108900.0,0.65001892]
[1751620372896,1.71494176,108910.0,108900.0,0.65001892]
[1751620373795,1.69204762,108910.0,108900.0,0.65001892]
[1751620374094,1.69204762,108910.0,108900.0,0.68231892]
[1751620374995,1.4415943,108910.0,108900.0,0.68231892]
[1751620375196,1.69204762,108910.0,108900.0,0.68231892]
[1751620375588,1.69204762,108910.0,108900.0,0.93277224]
[1751620376197,1.67604762,108910.0,108900.0,0.93277224]
[1751620377596,1.4255943,108910.0,108900.0,0.93277224]
[1751620381995,0.3608,108910.0,108900.0,0.84277224]
[1751620382196,0.83248,108910.0,108900.0,1.56447224]
[1751620382393,1.0160544,108910.0,108900.0,1.56447224]
[1751620382793,1.0160544,108910.0,108900.0,1.20367224]
[1751620383291,1.0160544,108910.0,108900.0,1.56447224]
[1751620384003,0.1835744,108910.0,108900.0,1.63774007]
[1751620387905,0.1835744,108910.0,108900.0,1.56447224]
[1751620390201,0.1835744,108910.0,108900.0,1.63774007]
[1751620390406,0.1835744,108910.0,108900.0,1.56447224]
[1751620391207,0.1835744,108910.0,108900.0,1.63774007]
[1751620391394,0.1835744,108910.0,108900.0,1.56447224]
[1751620391906,0.1835744,108910.0,108900.0,1.63774007]
[1751620392608,0.82339475,108920.0,108910.0,0.1835743]
[1751620392906,0.84629342,108920.0,108910.0,0.49712762]
[1751620393205,1.18024242,108920.0,108910.0,0.49712762]
[1751620393409,1.18024242,108920.0,108910.0,0.81712762]
[1751620393609,1.15734375,108920.0,108910.0,0.81712762]
[1751620394205,0.26060375,108920.0,108910.0,1.06758094]
[1751620394709,0.002,108920.0,108910.0,1.09958094]
[1751620395009,0.002,108920.0,108910.0,1.17284877]
[1751620396405,0.002,108920.0,108910.0,1.09958094]
[1751620396807,0.003,108920.0,108910.0,1.09958094]
[1751620397610,0.1865575,108920.0,108910.0,1.09958094]
[1751620397912,0.003,108920.0,108910.0,1.09958094]
[1751620400614,0.1865575,108920.0,108910.0,1.09958094]
[1751620401613,0.003,108920.0,108910.0,1.09958094]
[1751620402122,0.1865575,108920.0,108910.0,1.09958094]
[1751620410016,0.003,108920.0,108910.0,1.09958094]
[1751620410218,0.1865575,108920.0,108910.0,1.09958094]
[1751620412019,0.1865575,108920.0,108910.0,0.77958094]
[1751620412322,0.1865575,108920.0,108910.0,0.52912762]
[1751620413823,0.20944592,108920.0,108910.0,0.52912762]
[1751620415023,0.2094465,108920.0,108910.0,0.52912762]